Workbook

Sheet Sheet1
D1: For explanation of parameters, move cursor over cell with a red mark in the upper right corner
D2: To change parameters, try steps of about 1/10 of the parameter value
F3: ini_C | G3: 0.1 | I3: time | J3: Coordination | K3: Dissociation | L3: Trauma
F4: r_C | G4: 0.15 | H4: 0.15 | I4: 0 | J4: =ini_C -> 0.1 | K4: =ini_D -> 0.1 | L4: =IF(I4<onset_T,0,IF(I4>stop_t,0,sup_T2D)) -> 0 | M4: =I4/12 -> 0
F5: K_C | G5: 1 | I5: 1 | J5: =J4+J4*r_C*(1-J4/K_C)+comp_D2C*K4*J4 -> 0.1125 | K5: =K4+K4*IF(L5=0,r_D,r_D*inc_r_D)*(1-K4/(K_D+L5))+comp_C2D*J4*K4 -> 0.099 | L5: 0 | M5: =I5/12 -> 0.08333333333
F6: comp_C2D | G6: -0.1 | I6: 2 | J6: 0.1263628125 | K6: 0.09798525 | L6: 0 | M6: 0.1666666667
F7: ini_D | G7: 0.1 | I7: 3 | J7: 0.1416839311 | K7: 0.09694449661 | L7: 0 | M7: 0.25
F8: r_D | G8: 0.1 | I8: 4 | J8: 0.1585518226 | K8: 0.09586716311 | L8: 0 | M8: 0.3333333333
F9: K_D | G9: 0.1 | I9: 5 | J9: 0.1770438026 | K9: 0.09474337511 | L9: 0 | M9: 0.4166666667
F10: comp_D2C | G10: -0.1 | I10: 6 | J10: 0.197221324 | K10: 0.09356403275 | L10: 0 | M10: 0.5
F11: sup_T2D | G11: 1 | I11: 7 | J11: 0.2191248028 | K11: 0.09232092556 | L11: 0 | M11: 0.5833333333
F12: onset_T | G12: 100 | H12: =onset_T/12 -> 8.333333333 | I12: 8 | J12: 0.2427681909 | K12: 0.09100688436 | L12: 0 | M12: 0.6666666667
F13: inc_r_D | G13: 2 | I13: 9 | J13: 0.2681336027 | K13: 0.08961596213 | L13: 0 | M13: 0.75
F14: stop_t | G14: 1000 | I14: 10 | J14: 0.2951663937 | K14: 0.08814363259 | L14: 0 | M14: 0.8333333333
I15: 11 | J15: 0.3237711689 | K15: 0.08658699207 | L15: 0 | M15: 0.9166666667
I16: 12 | J16: 0.3538092416 | K16: 0.08494494692 | L16: 0 | M16: 1
I17: 13 | J17: 0.3850980502 | K17: 0.08321836688 | L17: 0 | M17: 1.083333333
I18: 14 | J18: 0.4174129584 | K18: 0.0814101839 | L18: 0 | M18: 1.166666667
I19: 15 | J19: 0.4504916989 | K19: 0.07952541767 | L19: 0 | M19: 1.25
I20: 16 | J20: 0.4840414841 | K20: 0.07757111333 | L20: 0 | M20: 1.333333333
I21: 17 | J21: 0.5177485193 | K21: 0.07555618336 | L21: 0 | M21: 1.416666667
I22: 18 | J22: 0.5512893576 | K22: 0.07349115465 | L22: 0 | M22: 1.5
I23: 19 | J23: 0.5843432787 | K23: 0.07138783116 | L23: 0 | M23: 1.583333333
I24: 20 | J24: 0.6166047105 | K24: 0.0692588919 | L24: 0 | M24: 1.666666667
I25: 21 | J25: 0.6477946758 | K25: 0.06711745109 | L25: 0 | M25: 1.75
I26: 22 | J26: 0.6776703531 | K26: 0.06497661121 | L26: 0 | M26: 1.833333333
I27: 23 | J27: 0.7060320677 | K27: 0.06284904002 | L27: 0 | M27: 1.916666667
I28: 24 | J28: 0.732727342 | K28: 0.06074659842 | L28: 0 | M28: 2
I29: 25 | J29: 0.7576519703 | K29: 0.05868003969 | L29: 0 | M29: 2.083333333
I30: 26 | J30: 0.7807483848 | K30: 0.05665879183 | L30: 0 | M30: 2.166666667
I31: 27 | J31: 0.8020018105 | K31: 0.0546908263 | L31: 0 | M31: 2.25
I32: 28 | J32: 0.8214348323 | K32: 0.05278260828 | L32: 0 | M32: 2.333333333
I33: 29 | J33: 0.8391010323 | K33: 0.05093911807 | L33: 0 | M33: 2.416666667
I34: 30 | J34: 0.8550782991 | K34: 0.04916392947 | L34: 0 | M34: 2.5
I35: 31 | J35: 0.8694623084 | K35: 0.04745932954 | L35: 0 | M35: 2.583333333
I36: 32 | J36: 0.882360539 | K36: 0.04582646471 | L36: 0 | M36: 2.666666667
I37: 33 | J37: 0.8938870553 | K37: 0.0442654999 | L37: 0 | M37: 2.75
I38: 34 | J38: 0.9041581677 | K38: 0.04277577968 | L38: 0 | M38: 2.833333333
I39: 35 | J39: 0.913288987 | K39: 0.04135598326 | L39: 0 | M39: 2.916666667
I40: 36 | J40: 0.9213908226 | K40: 0.04000426783 | L40: 0 | M40: 3
I41: 37 | J41: 0.9285693322 | K41: 0.03871839664 | L41: 0 | M41: 3.083333333
I42: 38 | J42: 0.9349233098 | K42: 0.0374958505 | L42: 0 | M42: 3.166666667
I43: 39 | J43: 0.9405439925 | K43: 0.03633392228 | L43: 0 | M43: 3.25
I44: 40 | J44: 0.9455147759 | K44: 0.03522979536 | L44: 0 | M44: 3.333333333
I45: 41 | J45: 0.9499112343 | K45: 0.03418060721 | L45: 0 | M45: 3.416666667
I46: 42 | J46: 0.9538013622 | K46: 0.03318349975 | L46: 0 | M46: 3.5
I47: 43 | J47: 0.9572459641 | K47: 0.03223565834 | L47: 0 | M47: 3.583333333
I48: 44 | J48: 0.9602991379 | K48: 0.03133434112 | L48: 0 | M48: 3.666666667
I49: 45 | J49: 0.9630088094 | K49: 0.03047690022 | L49: 0 | M49: 3.75
I50: 46 | J50: 0.9654172834 | K50: 0.02966079646 | L50: 0 | M50: 3.833333333
I51: 47 | J51: 0.9675617917 | K51: 0.0288836087 | L51: 0 | M51: 3.916666667
I52: 48 | J52: 0.9694750197 | K52: 0.0281430391 | L52: 0 | M52: 4
I53: 49 | J53: 0.9711856033 | K53: 0.02743691502 | L53: 0 | M53: 4.083333333
I54: 50 | J54: 0.9727185887 | K54: 0.02676318853 | L54: 0 | M54: 4.166666667
I55: 51 | J55: 0.974095854 | K55: 0.02611993403 | L55: 0 | M55: 4.25
I56: 52 | J56: 0.9753364902 | K56: 0.02550534453 | L56: 0 | M56: 4.333333333
I57: 53 | J57: 0.976457144 | K57: 0.02491772707 | L57: 0 | M57: 4.416666667
I58: 54 | J58: 0.9774723233 | K58: 0.02435549739 | L58: 0 | M58: 4.5
I59: 55 | J59: 0.9783946679 | K59: 0.02381717441 | L59: 0 | M59: 4.583333333
I60: 56 | J60: 0.9792351895 | K60: 0.02330137441 | L60: 0 | M60: 4.666666667
I61: 57 | J61: 0.9800034819 | K61: 0.02280680523 | L61: 0 | M61: 4.75
I62: 58 | J62: 0.9807079056 | K62: 0.02233226053 | L62: 0 | M62: 4.833333333
I63: 59 | J63: 0.9813557496 | K63: 0.02187661428 | L63: 0 | M63: 4.916666667
I64: 60 | J64: 0.9819533718 | K64: 0.02143881533 | L64: 0 | M64: 5
I65: 61 | J65: 0.9825063222 | K65: 0.02101788236 | L65: 0 | M65: 5.083333333
I66: 62 | J66: 0.9830194494 | K66: 0.02061289899 | L66: 0 | M66: 5.166666667
I67: 63 | J67: 0.983496993 | K67: 0.02022300922 | L67: 0 | M67: 5.25
I68: 64 | J68: 0.9839426648 | K68: 0.01984741317 | L68: =IF(I68<onset_T,0,IF(I68>stop_t,0,sup_T2D)) -> 0 | M68: 5.333333333
I69: 65 | J69: =J68+J68*r_C*(1-J68/K_C)+comp_D2C*K68*J68 -> 0.9843597177 | K69: =K68+K68*IF(L69=0,r_D,r_D*inc_r_D)*(1-K68/(K_D+L69))+comp_C2D*J68*K68 -> 0.01948536301 | L69: 0 | M69: =I69/12 -> 5.416666667
I70: 66 | J70: 0.9847510067 | K70: 0.0191361593 | L70: 0 | M70: 5.5
I71: 67 | J71: 0.9851190407 | K71: 0.01879914742 | L71: 0 | M71: 5.583333333
I72: 68 | J72: 0.9854660283 | K72: 0.01847371441 | L72: 0 | M72: 5.666666667
I73: 69 | J73: 0.9857939168 | K73: 0.01815928593 | L73: 0 | M73: 5.75
I74: 70 | J74: 0.986104426 | K74: 0.0178553235 | L74: 0 | M74: 5.833333333
I75: 71 | J75: 0.9863990777 | K75: 0.01756132192 | L75: 0 | M75: 5.916666667
I76: 72 | J76: 0.9866792211 | K76: 0.01727680691 | L76: 0 | M76: 6
I77: 73 | J77: 0.9869460548 | K77: 0.01700133291 | L77: 0 | M77: 6.083333333
I78: 74 | J78: 0.987200646 | K78: 0.01673448103 | L78: 0 | M78: 6.166666667
I79: 75 | J79: 0.9874439465 | K79: 0.01647585723 | L79: 0 | M79: 6.25
I80: 76 | J80: 0.9876768078 | K80: 0.01622509053 | L80: 0 | M80: 6.333333333
I81: 77 | J81: 0.9878999929 | K81: 0.01598183146 | L81: 0 | M81: 6.416666667
I82: 78 | J82: 0.9881141873 | K82: 0.01574575055 | L82: 0 | M82: 6.5
I83: 79 | J83: 0.9883200084 | K83: 0.015516537 | L83: 0 | M83: 6.583333333
I84: 80 | J84: 0.9885180134 | K84: 0.01529389738 | L84: 0 | M84: 6.666666667
I85: 81 | J85: 0.9887087067 | K85: 0.01507755451 | L85: 0 | M85: 6.75
I86: 82 | J86: 0.9888925457 | K86: 0.01486724637 | L86: 0 | M86: 6.833333333
I87: 83 | J87: 0.9890699466 | K87: 0.01466272508 | L87: 0 | M87: 6.916666667
I88: 84 | J88: 0.9892412887 | K88: 0.01446375601 | L88: 0 | M88: 7
I89: 85 | J89: 0.9894069184 | K89: 0.01427011691 | L89: 0 | M89: 7.083333333
I90: 86 | J90: 0.9895671534 | K90: 0.01408159713 | L90: 0 | M90: 7.166666667
I91: 87 | J91: 0.9897222852 | K91: 0.01389799686 | L91: 0 | M91: 7.25
I92: 88 | J92: 0.9898725819 | K92: 0.01371912651 | L92: 0 | M92: 7.333333333
I93: 89 | J93: 0.9900182912 | K93: 0.01354480601 | L93: 0 | M93: 7.416666667
I94: 90 | J94: 0.9901596418 | K94: 0.01337486427 | L94: 0 | M94: 7.5
I95: 91 | J95: 0.9902968456 | K95: 0.01320913863 | L95: 0 | M95: 7.583333333
I96: 92 | J96: 0.9904300992 | K96: 0.01304747431 | L96: 0 | M96: 7.666666667
I97: 93 | J97: 0.9905595858 | K97: 0.01288972403 | L97: 0 | M97: 7.75
I98: 94 | J98: 0.9906854757 | K98: 0.01273574748 | L98: 0 | M98: 7.833333333
I99: 95 | J99: 0.9908079283 | K99: 0.01258541096 | L99: 0 | M99: 7.916666667
I100: 96 | J100: 0.9909270924 | K100: 0.01243858699 | L100: 0 | M100: 8
I101: 97 | J101: 0.9910431076 | K101: 0.01229515396 | L101: 0 | M101: 8.083333333
I102: 98 | J102: 0.9911561048 | K102: 0.01215499578 | L102: 0 | M102: 8.166666667
I103: 99 | J103: 0.9912662071 | K103: 0.01201800161 | L103: 0 | M103: 8.25
I104: 100 | J104: 0.9913735303 | K104: 0.01320403762 | L104: 1 | M104: 8.333333333
I105: 101 | J105: 0.991347325 | K105: 0.01450413242 | L105: 1 | M105: 8.416666667
I106: 102 | J106: 0.9911961327 | K106: 0.01592884655 | L106: 1 | M106: 8.5
I107: 103 | J107: 0.9909262254 | K107: 0.01748962236 | L107: 1 | M107: 8.583333333
I108: 104 | J108: 0.9905418491 | K108: 0.01919883849 | L108: 1 | M108: 8.666666667
I109: 105 | J109: 0.9900454279 | K109: 0.02106986354 | L109: 1 | M109: 8.75
I110: 106 | J110: 0.9894377375 | K110: 0.02311710783 | L110: 1 | M110: 8.833333333
I111: 107 | J111: 0.9887180488 | K111: 0.02535607175 | L111: 1 | M111: 8.916666667
I112: 108 | J112: 0.9878842485 | K112: 0.02780338909 | L112: 1 | M112: 9
I113: 109 | J113: 0.9869329395 | K113: 0.03047686327 | L113: 1 | M113: 9.083333333
I114: 110 | J114: 0.9858595243 | K114: 0.03339549405 | L114: 1 | M114: 9.166666667
I115: 111 | J115: 0.9846582761 | K115: 0.0365794919 | L115: 1 | M115: 9.25
I116: 112 | J116: 0.9833223995 | K116: 0.04005027684 | L116: 1 | M116: 9.333333333
I117: 113 | J117: 0.9818440848 | K117: 0.04383045793 | L117: 1 | M117: 9.416666667
I118: 114 | J118: 0.9802145589 | K118: 0.04794378937 | L118: 1 | M118: 9.5
I119: 115 | J119: 0.9784241355 | K119: 0.05241509868 | L119: 1 | M119: 9.583333333
I120: 116 | J120: 0.9764622677 | K120: 0.05727018182 | L120: 1 | M120: 9.666666667
I121: 117 | J121: 0.9743176067 | K121: 0.06253566035 | L121: 1 | M121: 9.75
I122: 118 | J122: 0.9719780684 | K122: 0.06823879496 | L122: 1 | M122: 9.833333333
I123: 119 | J123: 0.9694309126 | K123: 0.07440725035 | L123: 1 | M123: 9.916666667
I124: 120 | J124: 0.9666628365 | K124: 0.0810688063 | L124: 1 | M124: 10
I125: 121 | J125: 0.9636600858 | K125: 0.08825101073 | L125: 1 | M125: 10.08333333
I126: 122 | J126: 0.9604085869 | K126: 0.09598077142 | L126: 1 | M126: 10.16666667
I127: 123 | J127: 0.9568941011 | K127: 0.1042838848 | L127: 1 | M127: 10.25
I128: 124 | J128: 0.9531024048 | K128: 0.1131845022 | L128: 1 | M128: 10.33333333
I129: 125 | J129: 0.9490194943 | K129: 0.1227045367 | L129: 1 | M129: 10.41666667
I130: 126 | J130: 0.9446318186 | K130: 0.1328630164 | L130: 1 | M130: 10.5
I131: 127 | J131: 0.9399265372 | K131: 0.1436753962 | L131: 1 | M131: 10.58333333
I132: 128 | J132: 0.9348918017 | K132: 0.1551528401 | L132: =IF(I132<onset_T,0,IF(I132>stop_t,0,sup_T2D)) -> 1 | M132: 10.66666667
I133: 129 | J133: =J132+J132*r_C*(1-J132/K_C)+comp_D2C*K132*J132 -> 0.929517058 | K133: =K132+K132*IF(L133=0,r_D,r_D*inc_r_D)*(1-K132/(K_D+L133))+comp_C2D*J132*K132 -> 0.1673014956 | L133: 1 | M133: =I133/12 -> 10.75
I134: 130 | J134: 0.9237933632 | K134: 0.1801217825 | L134: 1 | M134: 10.83333333
I135: 131 | J135: 0.9177137102 | K135: 0.1936077253 | L135: 1 | M135: 10.91666667
I136: 132 | J136: 0.9112733523 | K136: 0.2077463601 | L136: 1 | M136: 11
I137: 133 | J137: 0.9044701145 | K137: 0.2225172508 | L137: 1 | M137: 11.08333333
I138: 134 | J138: 0.8973046832 | K138: 0.2378921485 | L138: 1 | M138: 11.16666667
I139: 135 | J139: 0.8897808576 | K139: 0.2538348271 | L139: 1 | M139: 11.25
I140: 136 | J140: 0.881905753 | K140: 0.2703011247 | L140: 1 | M140: 11.33333333
I141: 137 | J141: 0.8736899407 | K141: 0.2872392111 | L141: 1 | M141: 11.41666667
I142: 138 | J142: 0.865147514 | K142: 0.3045900952 | L142: 1 | M142: 11.5
I143: 139 | J143: 0.8562960716 | K143: 0.3222883731 | L143: 1 | M143: 11.58333333
I144: 140 | J144: 0.8471566112 | K144: 0.3402632036 | L144: 1 | M144: 11.66666667
I145: 141 | J145: 0.8377533321 | K145: 0.3584394861 | L145: 1 | M145: 11.75
I146: 142 | J146: 0.8281133477 | K146: 0.3767392023 | L146: 1 | M146: 11.83333333
I147: 143 | J147: 0.8182663161 | K147: 0.3950828708 | L147: 1 | M147: 11.91666667
I148: 144 | J148: 0.8082439984 | K148: 0.4133910581 | L148: 1 | M148: 12
I149: 145 | J149: 0.7980797599 | K149: 0.4315858825 | L149: 1 | M149: 12.08333333
I150: 146 | J150: 0.7878080326 | K150: 0.4495924498 | L150: 1 | M150: 12.16666667
I151: 147 | J151: 0.7774637588 | K151: 0.4673401634 | L151: 1 | M151: 12.25
I152: 148 | J152: 0.7670818341 | K152: 0.4847638597 | L152: 1 | M152: 12.33333333
I153: 149 | J153: 0.7566965732 | K153: 0.5018047312 | L153: 1 | M153: 12.41666667
I154: 150 | J154: 0.7463412115 | K154: 0.5184110148 | L154: 1 | M154: 12.5
I155: 151 | J155: 0.7360474622 | K155: 0.5345384345 | L155: 1 | M155: 12.58333333
I156: 152 | J156: 0.7258451357 | K156: 0.5501504032 | L156: 1 | M156: 12.66666667
I157: 153 | J157: 0.7157618325 | K157: 0.5652179997 | L157: 1 | M157: 12.75
I158: 154 | J158: 0.7058227101 | K158: 0.5797197457 | L158: 1 | M158: 12.83333333
I159: 155 | J159: 0.6960503257 | K159: 0.5936412162 | L159: 1 | M159: 12.91666667
I160: 156 | J160: 0.68646455 | K160: 0.6069745172 | L160: 1 | M160: 13
I161: 157 | J161: 0.6770825468 | K161: 0.6197176691 | L161: 1 | M161: 13.08333333
I162: 158 | J162: 0.6679188108 | K162: 0.6318739303 | L162: 1 | M162: 13.16666667
I163: 159 | J163: 0.6589852533 | K163: 0.6434510927 | L163: 1 | M163: 13.25
I164: 160 | J164: 0.6502913286 | K164: 0.654460777 | L164: 1 | M164: 13.33333333
I165: 161 | J165: 0.6418441893 | K165: 0.6649177504 | L165: 1 | M165: 13.41666667
I166: 162 | J166: 0.6336488637 | K166: 0.6748392838 | L166: 1 | M166: 13.5
I167: 163 | J167: 0.6257084464 | K167: 0.6842445608 | L167: 1 | M167: 13.58333333
I168: 164 | J168: 0.6180242942 | K168: 0.6931541457 | L168: 1 | M168: 13.66666667
I169: 165 | J169: 0.610596224 | K169: 0.7015895157 | L169: 1 | M169: 13.75
I170: 166 | J170: 0.6034227043 | K170: 0.7095726554 | L170: 1 | M170: 13.83333333
I171: 167 | J171: 0.5965010409 | K171: 0.7171257154 | L171: 1 | M171: 13.91666667
I172: 168 | J172: 0.5898275497 | K172: 0.7242707273 | L172: 1 | M172: 14
I173: 169 | J173: 0.5833977186 | K173: 0.7310293742 | L173: 1 | M173: 14.08333333
I174: 170 | J174: 0.5772063547 | K174: 0.7374228083 | L174: 1 | M174: 14.16666667
I175: 171 | J175: 0.5712477184 | K175: 0.7434715118 | L175: 1 | M175: 14.25
I176: 172 | J176: 0.5655156423 | K176: 0.7491951939 | L176: 1 | M176: 14.33333333
I177: 173 | J177: 0.5600036373 | K177: 0.75461272 | L177: 1 | M177: 14.41666667
I178: 174 | J178: 0.554704985 | K178: 0.7597420668 | L178: 1 | M178: 14.5
I179: 175 | J179: 0.5496128185 | K179: 0.7646002985 | L179: 1 | M179: 14.58333333
I180: 176 | J180: 0.5447201913 | K180: 0.7692035608 | L180: 1 | M180: 14.66666667
I181: 177 | J181: 0.5400201359 | K181: 0.7735670896 | L181: 1 | M181: 14.75
I182: 178 | J182: 0.5355057137 | K182: 0.7777052284 | L182: 1 | M182: 14.83333333
I183: 179 | J183: 0.531170056 | K183: 0.7816314562 | L183: 1 | M183: 14.91666667
I184: 180 | J184: 0.5270063977 | K184: 0.7853584189 | L184: 1 | M184: 15
I185: 181 | J185: 0.5230081048 | K185: 0.7888979668 | L185: 1 | M185: 15.08333333
I186: 182 | J186: 0.5191686958 | K186: 0.7922611931 | L186: 1 | M186: 15.16666667
I187: 183 | J187: 0.5154818589 | K187: 0.7954584747 | L187: 1 | M187: 15.25
I188: 184 | J188: 0.5119414644 | K188: 0.7984995129 | L188: 1 | M188: 15.33333333
I189: 185 | J189: 0.5085415736 | K189: 0.8013933741 | L189: 1 | M189: 15.41666667
I190: 186 | J190: 0.5052764451 | K190: 0.8041485296 | L190: 1 | M190: 15.5
I191: 187 | J191: 0.5021405379 | K191: 0.806772894 | L191: 1 | M191: 15.58333333
I192: 188 | J192: 0.4991285131 | K192: 0.8092738621 | L192: 1 | M192: 15.66666667
I193: 189 | J193: 0.4962352333 | K193: 0.8116583442 | L193: 1 | M193: 15.75
I194: 190 | J194: 0.4934557605 | K194: 0.8139327994 | L194: 1 | M194: 15.83333333
I195: 191 | J195: 0.4907853536 | K195: 0.816103267 | L195: 1 | M195: 15.91666667
I196: 192 | J196: 0.488219464 | K196: 0.818175396 | L196: =IF(I196<onset_T,0,IF(I196>stop_t,0,sup_T2D)) -> 1 | M196: 16
I197: 193 | J197: =J196+J196*r_C*(1-J196/K_C)+comp_D2C*K196*J196 -> 0.4857537316 | K197: =K196+K196*IF(L197=0,r_D,r_D*inc_r_D)*(1-K196/(K_D+L197))+comp_C2D*J196*K196 -> 0.8201544729 | L197: 1 | M197: =I197/12 -> 16.08333333
I198: 194 | J198: 0.4833839786 | K198: 0.8220454471 | L198: 1 | M198: 16.16666667
I199: 195 | J199: 0.4811062049 | K199: 0.8238529553 | L199: 1 | M199: 16.25
I200: 196 | J200: 0.4789165817 | K200: 0.8255813437 | L200: 1 | M200: 16.33333333
... 194 more rows

Sheet Sheet2

Sheet Sheet3
